bitfinex-derivatives/quotes_SOLF0:USTF0_20250816
["timestamp","ask_amount","ask_price","bid_price","bid_amount"]
[1755338195739,3.06,186.97,186.93,3.03]
[1755338196332,3.06,187.0,186.92,3.03]
[1755338196534,3.06,186.98,186.88,3.03]
[1755338196839,3.06,186.96,186.88,3.03]
[1755338197030,3.06,186.94,186.88,3.03]
[1755338199039,3.06,186.94,186.89,3.03]
[1755338199235,3.06,186.93,186.89,3.03]
[1755338199943,7.30763725,187.01,186.89,3.03]
[1755338200144,3.06,186.92,186.89,3.03]
[1755338200345,3.06,186.92,186.9,3.03]
[1755338200545,3.06,186.92,186.91,3.03]
[1755338202543,3.06,187.0,186.91,3.03]
[1755338202748,3.06,186.98,186.91,3.03]
[1755338202943,3.06,186.96,186.91,3.03]
[1755338203943,3.06,186.96,186.89,5.347]
[1755338204150,3.06,186.96,186.93,3.03]
[1755338204838,3.06,186.96,186.89,3.03]
[1755338205342,3.06,186.96,186.82,3.03]
[1755338205549,3.06,186.94,186.82,2.88628179]
[1755338205751,3.06,186.94,186.83,3.03]
[1755338206243,3.06,186.94,186.86,5.3477]
[1755338206444,3.06,186.94,186.87,3.03]
[1755338208447,4.0602362,186.93,186.87,3.03]
[1755338208648,2.86,186.92,186.88,2.95]
[1755338208953,2.86,186.92,186.89,2.95]
[1755338209347,2.86,186.97,186.87,5.3474]
[1755338209548,2.86,186.95,186.86,2.95]
[1755338209741,2.86,186.93,186.86,2.95]
[1755338213049,2.86,186.91,186.86,2.95]
[1755338213349,2.86,186.89,186.86,2.95]
[1755338214344,2.86,186.89,186.8,46.88628179]
[1755338214345,2.86,186.89,186.83,2.95]
[1755338214550,2.86,186.87,186.84,2.95]
[1755338214744,2.88628179,186.92,186.8,46.88628179]
[1755338214949,2.86,186.89,186.85,2.95]
[1755338215346,2.88628179,186.94,186.85,2.95]
[1755338215544,2.86,186.92,186.85,2.95]
[1755338215745,4.06516747,186.91,186.85,2.95]
[1755338215954,2.86,186.89,186.85,2.95]
[1755338216150,2.86,186.89,186.86,2.95]
[1755338216547,2.86,186.9,186.87,5.3475]
[1755338216752,2.86,186.9,186.88,2.95]
[1755338217049,2.86,186.9,186.89,2.95]
[1755338217254,6.92581925,186.9,186.89,2.95]
[1755338217850,4.06581925,186.9,186.89,2.95]
[1755338218057,4.06581925,186.92,186.89,2.95]
[1755338218245,4.06581925,186.91,186.89,2.95]
[1755338218555,2.86,186.93,186.9,2.95]
[1755338218752,2.86,186.91,186.9,2.95]
[1755338219054,6.92754387,186.91,186.9,2.95]
[1755338219451,4.06754387,186.91,186.78,44.0]
[1755338219656,2.86,186.88,186.76,2.95]
[1755338219854,4.06754387,186.87,186.78,2.95]
[1755338220055,2.86,186.85,186.78,2.95]
[1755338220255,6.92754387,186.84,186.78,2.95]
[1755338220459,2.86,186.84,186.78,2.95]
[1755338221963,2.86,186.81,186.79,2.95]
[1755338222156,2.86,186.8,186.79,2.95]
[1755338223461,2.86,186.85,186.77,2.95]
[1755338223660,2.86,186.83,186.77,2.95]
[1755338223864,6.95938593,186.82,186.77,2.95]
[1755338224062,2.86,186.82,186.79,2.95]
[1755338224560,2.86,186.82,186.81,2.95]
[1755338226763,2.86,186.82,186.78,5.3501]
[1755338226764,2.86,186.82,186.76,2.88628179]
[1755338226969,4.41260362,186.88,186.76,2.88628179]
[1755338226970,2.86,186.88,186.77,2.95]
[1755338227267,2.86,186.86,186.77,2.95]
[1755338227469,2.86,186.84,186.77,2.95]
[1755338227872,2.86,186.82,186.77,2.95]
[1755338228068,2.86,186.82,186.78,2.95]
[1755338228572,2.86,186.82,186.72,44.0]
[1755338228772,2.86,186.82,186.79,2.95]
[1755338229074,2.86,186.82,186.72,2.95]
[1755338229275,2.86,186.82,186.73,5.3515]
[1755338229469,2.86,186.82,186.74,2.95]
[1755338231673,2.86,186.82,186.75,2.95]
[1755338234374,2.86,186.82,186.71,2.88628179]
[1755338234676,2.86,186.8,186.69,2.95]
[1755338235274,2.88628179,186.81,186.69,2.95]
[1755338235275,2.86,186.78,186.69,2.95]
[1755338236274,2.86,186.78,186.7,2.95]
[1755338236875,2.86,186.78,186.69,2.88628179]
[1755338237178,2.86,186.78,186.72,2.88628179]
[1755338237376,2.86,186.83,186.73,2.95]
[1755338237578,2.86,186.81,186.73,2.95]
[1755338237778,2.86,186.81,186.75,5.3508]
[1755338238076,2.86,186.81,186.76,2.95]
[1755338238272,2.86,186.81,186.77,2.95]
[1755338238481,2.86,186.81,186.78,3.1]
[1755338239480,2.86,186.81,186.73,5.3515]
[1755338239680,4.06683104,186.8,186.74,3.1]
[1755338239881,2.98,186.78,186.7,3.1]
[1755338240082,2.98,186.78,186.71,3.1]
[1755338241278,2.98,186.76,186.67,3.1]
[1755338241480,2.98,186.74,186.67,3.1]
[1755338241784,2.98,186.72,186.67,3.1]
[1755338241977,2.98,186.72,186.68,3.1]
[1755338242778,2.98,186.72,186.61,3.1]
[1755338242977,2.98,186.72,186.62,3.1]
[1755338242978,5.40294178,186.71,186.62,3.1]
[1755338243180,2.98,186.7,186.62,3.1]
[1755338243877,2.98,186.69,186.61,3.1]
[1755338244082,2.98,186.71,186.61,3.1]
[1755338244483,2.98,186.71,186.6,362.46628179]
[1755338244484,2.98,186.71,186.64,3.1]
[1755338244685,8.74573953,186.78,186.67,3.1]
[1755338244686,2.98,186.77,186.67,3.1]
[1755338244886,2.98,186.75,186.67,5.3532]
[1755338245081,5.40022259,186.74,186.68,3.1]
[1755338245284,1.33815014,186.73,186.68,3.1]
[1755338245476,2.88628179,186.78,186.68,3.1]
[1755338245477,2.98,186.71,186.68,3.1]
[1755338245681,2.98,186.72,186.68,3.1]
[1755338246083,2.98,186.77,186.67,3.1]
[1755338246283,2.98,186.77,186.7,3.1]
[1755338246284,5.40130096,186.76,186.7,3.1]
[1755338246584,2.98,186.77,186.72,2.88628179]
[1755338246784,1.33794817,186.76,186.73,8.4513]
[1755338246983,2.98,186.77,186.74,3.1]
[1755338247183,1.33794725,186.76,186.75,3.1]
[1755338247586,2.98,186.82,186.75,5.98628179]
[1755338247784,2.98,186.8,186.76,3.1]
[1755338247983,2.98,186.78,186.72,2.88628179]
[1755338248186,5.40488088,186.79,186.72,2.88628179]
[1755338248187,2.98,186.76,186.74,3.1]
[1755338248488,2.98,186.75,186.74,3.1]
[1755338248688,2.98,186.75,186.7,3.1]
[1755338248890,2.98,186.74,186.7,3.1]
[1755338249587,2.98,186.76,186.7,3.1]
[1755338250382,2.98,186.74,186.7,3.1]
[1755338250587,2.98,186.72,186.64,3.1]
[1755338250990,5.353,186.68,186.65,3.1]
[1755338251190,2.98,186.7,186.65,3.1]
[1755338251388,4.39441606,186.76,186.65,3.1]
[1755338251590,2.98,186.74,186.66,2.88628179]
[1755338251795,2.98,186.74,186.67,3.1]
[1755338251990,2.98,186.74,186.67,5.3531]
[1755338252193,4.07055948,186.73,186.68,3.1]
[1755338252391,2.98,186.73,186.68,3.1]
[1755338252893,2.98,186.72,186.68,3.1]
[1755338253288,2.98,186.72,186.64,3.1]
[1755338253489,2.98,186.72,186.66,3.1]
[1755338254096,4.07098715,186.71,186.66,3.1]
[1755338254298,7.37441606,186.75,186.67,3.1]
[1755338254497,2.98,186.73,186.67,3.1]
[1755338254686,2.98,186.71,186.67,3.1]
[1755338254890,2.98,186.74,186.61,3.1]
[1755338255092,2.98,186.72,186.61,3.1]
[1755338255293,7.05483248,186.71,186.64,3.1]
[1755338255591,4.39441606,186.76,186.64,3.1]
[1755338255790,8.39433179,186.75,186.68,3.1]
[1755338256095,4.07608021,186.74,186.68,3.1]
[1755338256294,4.07608021,186.73,186.68,3.1]
[1755338256496,2.98,186.71,186.68,3.1]
[1755338256793,2.98,186.71,186.67,3.1]
[1755338257198,2.98,186.73,186.68,3.1]
[1755338257395,7.05843171,186.72,186.67,5.3531]
[1755338257694,2.98,186.72,186.71,3.1]
[1755338257897,2.98,186.72,186.63,4.55460747]
[1755338257898,8.39710296,186.72,186.64,3.1]
[1755338258200,2.98,186.7,186.64,3.1]
[1755338258496,2.98,186.7,186.64,8.4539]
[1755338258497,5.353,186.68,186.64,8.4539]
[1755338258691,5.353,186.68,186.65,3.1]
[1755338259297,5.353,186.68,186.65,8.4538]
[1755338259498,5.3528,186.69,186.66,3.1]
[1755338260001,5.3528,186.69,186.66,5.3536]
[1755338260201,5.3528,186.69,186.67,3.1]
[1755338260602,5.3525,186.7,186.67,3.1]
[1755338261101,5.3523,186.71,186.63,4.55460747]
[1755338261304,5.3523,186.71,186.64,3.1]
[1755338261496,2.98,186.72,186.64,3.1]
[1755338261801,2.98,186.7,186.61,3.1]
[1755338262707,2.98,186.68,186.61,3.1]
[1755338262906,2.98,186.68,186.66,3.1]
[1755338263407,2.98,186.68,186.67,3.1]
[1755338264415,4.09030237,186.68,186.67,3.1]
[1755338264702,8.74476321,186.77,186.67,3.1]
[1755338264703,2.98,186.71,186.67,8.4533]
[1755338264906,2.98,186.69,186.61,3.1]
[1755338265104,4.09047396,186.68,186.61,3.1]
[1755338265408,2.98,186.69,186.63,3.1]
[1755338265706,2.98,186.7,186.63,3.1]
[1755338265911,4.08988289,186.69,186.66,5.3534]
[1755338266110,5.3525,186.7,186.67,3.1]
[1755338266306,4.09009915,186.69,186.67,3.1]
[1755338266513,5.3525,186.7,186.67,3.1]
[1755338266811,4.39441606,186.74,186.67,3.1]
[1755338267011,5.42917971,186.73,186.67,3.1]
[1755338267207,4.09092094,186.72,186.69,5.3526]
[1755338267403,2.98,186.74,186.69,5.3526]
[1755338267404,4.09092094,186.71,186.7,3.1]
[1755338267816,5.3528,186.69,186.63,3.1]
[1755338269007,8.3325,186.7,186.63,3.1]
[1755338269212,3.07,186.74,186.63,3.1]
[1755338269511,5.3508,186.76,186.67,2.94]
[1755338269700,4.0942329,186.75,186.69,2.94]
[1755338269909,4.0942329,186.74,186.69,2.94]
[1755338270209,5.3508,186.76,186.69,2.94]
[1755338270406,4.09582027,186.75,186.69,2.94]
[1755338270603,5.3508,186.76,186.69,2.94]
[1755338270812,4.09582027,186.75,186.69,2.94]
[1755338271112,3.07,186.76,186.75,2.94]
[1755338271310,7.16619058,186.76,186.75,2.94]
[1755338271613,12.51689058,186.76,186.75,2.94]
[1755338271814,4.09619058,186.76,186.75,2.94]
[1755338272011,4.09619058,186.76,186.7,4.55460747]
[1755338272210,8.4224,186.71,186.67,2.94]
[1755338272513,3.07,186.77,186.67,2.94]
[1755338272714,5.3521,186.72,186.69,5.3527]
[1755338272915,4.39441606,186.77,186.71,2.94]
[1755338273108,3.07,186.72,186.71,2.94]
[1755338274013,8.4219,186.72,186.71,2.94]
[1755338275212,5.3522,186.71,186.69,2.94]
[1755338275516,5.3522,186.71,186.7,2.94]
[1755338275906,5.352,186.72,186.69,2.94]
[1755338276110,5.352,186.72,186.7,2.94]
[1755338276416,5.3518,186.73,186.7,2.94]
[1755338276607,5.3518,186.73,186.72,2.94]
[1755338278016,8.4218,186.73,186.72,2.94]
[1755338278518,4.39441606,186.79,186.66,48.55460747]
[1755338278709,3.07,186.76,186.7,2.94]
[1755338278912,3.07,186.74,186.67,2.94]
[1755338279417,5.3521,186.72,186.69,2.94]
[1755338279820,8.4221,186.72,186.69,2.94]
[1755338280014,4.39441606,186.77,186.68,2.94]
[1755338280212,3.07,186.75,186.68,2.94]
[1755338280412,4.10531784,186.74,186.72,5.3517]
[1755338280618,3.07,186.8,186.73,2.94]
[1755338280811,4.10635552,186.79,186.74,2.94]
[1755338281014,5.3492,186.82,186.78,2.94]
[1755338281214,4.10812051,186.81,186.78,2.94]
[1755338281515,3.07,186.82,186.79,2.94]
[1755338281816,3.07,186.82,186.8,2.94]
[1755338282413,125.09667438,186.91,186.8,2.94]
[1755338282414,7.46441606,186.86,186.8,2.94]
[1755338282610,3.07,186.84,186.8,2.94]
[1755338282823,3.07,186.82,186.8,2.94]
[1755338283319,7.46441606,186.86,186.74,2.94]
[1755338283521,4.10278665,186.85,186.74,2.94]
[1755338283814,3.07,186.8,186.77,2.94]
[1755338284018,3.07,186.85,186.74,2.94]
[1755338284315,3.07,186.82,186.79,2.94]
[1755338284515,3.07,186.82,186.8,2.94]
[1755338284915,3.07,186.81,186.8,2.94]
[1755338285124,3.07,186.88,186.78,2.94]
[1755338285327,7.17507165,186.87,186.78,2.94]
[1755338285615,4.10507165,186.86,186.78,2.94]
[1755338285821,3.07,186.87,186.78,2.94]
[1755338286121,3.07,186.87,186.82,2.94]
[1755338286622,3.07,186.84,186.78,2.94]
[1755338288320,5.3498,186.8,186.78,2.94]
[1755338288518,5.3498,186.8,186.79,2.94]
[1755338289020,8.42,186.79,186.75,2.94]
[1755338290320,5.3497,186.8,186.76,2.94]
[1755338290520,8.4197,186.8,186.76,2.94]
[1755338291220,3.07,186.87,186.75,2.94]
[1755338291410,3.07,186.85,186.75,2.94]
[1755338291612,4.39441606,186.88,186.75,2.94]
[1755338291613,3.07,186.83,186.75,2.94]
[1755338292420,3.07,186.83,186.77,2.94]
[1755338292919,0.54,186.82,186.61,2.94]
[1755338293121,4.55460747,186.79,186.61,2.94]
[1755338293423,3.07,186.77,186.62,2.94]
[1755338293617,3.07,186.75,186.62,2.94]
[1755338293922,3.07,186.73,186.62,2.94]
[1755338294123,3.07,186.71,186.62,2.94]
[1755338296126,3.07,186.71,186.62,5.3547]
[1755338296326,3.07,186.71,186.58,137.04]
[1755338296327,3.07,186.71,186.63,2.94]
[1755338298020,4.17090885,186.7,186.59,4.55460747]
[1755338298226,4.17006332,186.69,186.55,8.2967]
[1755338298422,3.07,186.67,186.55,2.94]
[1755338298728,2.92,186.65,186.52,5.3576]
[1755338298926,2.92,186.63,186.5,2.85]
[1755338299325,2.92,186.63,186.53,4.55460747]
[1755338299529,2.92,186.63,186.54,2.85]
[1755338300228,2.92,186.63,186.57,2.85]
[1755338300929,8.94902353,186.69,186.58,2.85]
[1755338301126,2.92,186.67,186.58,2.85]
[1755338301723,2.92,186.65,186.52,2.85]
[1755338302032,2.92,186.63,186.55,2.85]
[1755338302231,2.92,186.63,186.49,4.55460747]
[1755338302536,14.90229975,186.82,186.49,4.55460747]
[1755338302537,2.92,186.61,186.51,2.85]
[1755338303834,2.92,186.61,186.52,2.85]
[1755338304238,2.92,186.59,186.42,2.85]
[1755338304429,2.92,186.57,186.42,2.85]
[1755338304632,4.15302399,186.56,186.42,2.85]
[1755338304830,8.94902353,186.6,186.43,2.85]
[1755338304831,2.92,186.54,186.43,2.85]
[1755338305629,2.92,186.54,186.31,62.0]
[1755338305834,2.92,186.52,186.36,2.85]
[1755338306135,2.92,186.5,186.36,2.85]
[1755338306335,2.92,186.5,186.41,2.85]
[1755338307631,2.92,186.5,186.41,5.3607]
[1755338307932,5.85945774,186.58,186.42,2.85]
[1755338307933,2.92,186.57,186.42,2.85]
[1755338308127,2.92,186.55,186.46,2.85]
[1755338308328,2.92,186.58,186.46,2.85]
[1755338308534,359.78,186.64,186.55,5.3565]
[1755338308535,2.92,186.61,186.55,5.3565]
[1755338308839,2.92,186.6,186.5,2.85]
[1755338309136,2.92,186.58,186.47,2.85]
[1755338309330,2.92,186.56,186.47,2.85]
[1755338309529,2.92,186.54,186.47,2.85]
[1755338310833,4.39441606,186.61,186.47,2.85]
[1755338311034,2.92,186.59,186.47,2.85]
[1755338311229,4.13113698,186.58,186.47,2.85]
[1755338311437,2.92,186.55,186.43,2.85]
[1755338311740,2.92,186.53,186.43,2.85]
[1755338312342,2.92,186.53,186.46,2.85]
[1755338313048,2.92,186.53,186.41,2.85]
[1755338314049,2.92,186.53,186.42,5.3604]
[1755338314239,2.92,186.53,186.43,2.85]
[1755338314446,2.92,186.58,186.44,4.55460747]
[1755338314645,2.92,186.58,186.45,2.85]
[1755338314845,4.1344578,186.57,186.45,2.85]
[1755338315048,4.13436487,186.56,186.45,2.85]
[1755338315346,2.92,186.55,186.47,5.3589]
[1755338315543,2.92,186.55,186.48,2.85]
[1755338315849,2.92,186.6,186.48,2.85]
[1755338316150,2.92,186.6,186.52,2.85]
[1755338316445,2.92,186.62,186.56,5.3564]
[1755338316650,2.92,186.62,186.54,4.55460747]
[1755338316943,2.92,186.65,186.55,2.85]
[1755338317144,2.92,186.65,186.54,4.55460747]
[1755338317340,2.92,186.65,186.61,2.85]
[1755338317548,2.92,186.65,186.54,4.55460747]
[1755338317748,2.92,186.68,186.55,2.85]
[1755338318342,2.92,186.68,186.58,4.55460747]
[1755338318546,2.92,186.68,186.6,5.355]
[1755338318845,2.92,186.68,186.61,2.85]
[1755338319040,2.92,186.68,186.62,5.3547]
[1755338319245,2.92,186.68,186.58,2.85]
[1755338320840,2.92,186.68,186.62,2.85]
[1755338322349,2.92,186.73,186.61,4.55460747]
[1755338322551,7.05693771,186.72,186.62,2.85]
[1755338322854,2.92,186.72,186.62,2.85]
[1755338323546,2.92,186.72,186.66,5.3535]
[1755338323744,2.92,186.75,186.67,2.85]
[1755338324349,2.92,186.75,186.51,148.1957]
[1755338324350,4.55460747,186.7,186.46,465.98]
[1755338324545,7.05516369,186.69,186.47,2.85]
[1755338324748,2.92,186.67,186.52,5.3574]
[1755338325043,2.92,186.65,186.53,2.85]
[1755338325248,2.92,186.63,186.53,2.85]
[1755338325546,2.92,186.61,186.53,2.85]
[1755338326443,4.13436505,186.6,186.49,2.85]
[1755338326644,2.92,186.61,186.49,2.85]
[1755338326847,4.36333235,186.64,186.49,2.85]
[1755338326848,5.3569,186.55,186.49,2.85]
[1755338327049,2.92,186.59,186.49,2.85]
[1755338327248,2.92,186.57,186.49,2.85]
[1755338327453,2.92,186.62,186.5,5.3581]
[1755338327653,2.92,186.6,186.51,2.85]
[1755338327853,4.55460747,186.66,186.51,2.85]
[1755338327854,2.92,186.62,186.51,2.85]
[1755338328247,2.92,186.62,186.5,4.55460747]
[1755338328248,2.92,186.62,186.53,2.85]
[1755338328552,5.3558,186.59,186.53,2.85]
[1755338328752,2.92,186.62,186.53,2.85]
[1755338329350,4.36333235,186.66,186.53,2.85]
[1755338329549,7.02950858,186.65,186.55,3.1]
[1755338329754,2.89,186.65,186.55,3.1]
[1755338330448,2.89,186.65,186.59,5.3553]
[1755338330750,2.89,186.65,186.63,3.1]
[1755338330944,8.2439,186.65,186.63,3.1]
[1755338331149,5.3539,186.65,186.54,4.55460747]
[1755338331350,2.89,186.68,186.6,3.1]
[1755338331546,2.89,186.66,186.6,3.1]
[1755338331750,4.14641118,186.65,186.6,3.1]
[1755338331948,2.89,186.64,186.62,3.1]
[1755338332153,8.2437,186.66,186.62,3.1]
[1755338332352,4.14982601,186.65,186.63,3.1]
[1755338332554,4.14982601,186.64,186.63,3.1]
[1755338333153,4.1531358,186.64,186.63,3.1]
[1755338333553,7.0431358,186.64,186.59,3.1]
[1755338333854,2.89,186.62,186.59,3.1]
[1755338334056,2.89,186.65,186.59,3.1]
[1755338334256,4.15602104,186.64,186.59,3.1]
[1755338334448,5.3538,186.66,186.6,5.355]
[1755338334650,4.15602515,186.65,186.61,3.1]
[1755338334850,4.15602515,186.64,186.6,5.355]
[1755338335056,2.89,186.65,186.6,3.1]
[1755338335256,4.15867241,186.64,186.59,5.3555]
[1755338335557,2.89,186.65,186.63,3.1]
[1755338335760,4.15866972,186.64,186.61,3.1]
[1755338335951,2.89,186.67,186.59,3.1]
[1755338336259,4.15866825,186.66,186.59,3.1]
[1755338336461,2.89,186.62,186.6,3.1]
[1755338336849,8.2444,186.64,186.61,3.1]
[1755338337056,4.16213742,186.63,186.61,3.1]
[1755338337255,8.2444,186.64,186.61,3.1]
[1755338337256,4.16213742,186.62,186.61,3.1]
[1755338338158,2.89,186.61,186.46,359.98]
[1755338338358,2.89,186.57,186.46,359.98]
[1755338338558,2.89,186.55,186.46,363.08]
[1755338338759,2.89,186.53,186.46,363.08]
[1755338339064,2.89,186.56,186.47,3.1]
[1755338339260,4.16867207,186.55,186.49,3.1]
[1755338339462,4.16867207,186.54,186.49,3.1]
[1755338339761,4.16867207,186.53,186.49,3.1]
[1755338339964,2.89,186.56,186.49,5.3584]
[1755338340163,4.16734642,186.55,186.51,4.55460747]
[1755338340463,8.2451,186.61,186.54,5.3567]
[1755338340651,2.89,186.59,186.56,3.1]
[1755338340856,4.16858067,186.58,186.56,3.1]
[1755338341056,4.16858067,186.57,186.56,3.1]
[1755338341255,7.05858067,186.57,186.52,4.55460747]
[1755338341451,7.05858067,186.56,186.53,3.1]
[1755338341652,7.05858067,186.55,186.53,3.1]
[1755338341856,7.05858067,186.54,186.49,5.3584]
[1755338342052,2.89,186.51,186.49,3.1]
[1755338342251,4.16816907,186.5,186.49,3.1]
[1755338342458,4.16816907,186.5,186.41,142.08]
[1755338342459,4.16816907,186.5,186.44,4.55460747]
[1755338342753,2.89,186.48,186.38,4.55460747]
[1755338342955,7.05816907,186.47,186.42,5.3602]
[1755338343256,4.16816907,186.46,186.42,4.55460747]
[1755338343464,2.89,186.54,186.46,4.55460747]
[1755338343662,4.16831931,186.53,186.46,4.55460747]
[1755338343857,2.89,186.51,186.34,0.93346388]
[1755338344058,7.25333235,186.49,186.35,4.55460747]
[1755338344259,2.89,186.47,186.35,4.55460747]
[1755338344463,2.89,186.45,186.35,5.3624]
[1755338344660,2.89,186.43,186.34,3.1]
[1755338344863,2.89,186.41,186.34,3.1]
[1755338345068,2.89,186.41,186.34,8.4627]
[1755338345363,4.15865875,186.4,186.34,8.4627]
[1755338345556,4.55460747,186.51,186.34,3.1]
[1755338345557,2.89,186.38,186.34,3.1]
[1755338345761,8.74476321,186.47,186.34,3.1]
[1755338345762,2.89,186.42,186.34,3.1]
[1755338345961,2.89,186.4,186.34,3.1]
[1755338346168,2.89,186.38,186.34,3.1]
[1755338346464,2.89,186.38,186.35,3.1]
[1755338346869,4.36333235,186.44,186.33,4.55460747]
[1755338347061,7.04516482,186.43,186.34,3.1]
[1755338347369,4.15516482,186.42,186.34,3.1]
[1755338347663,2.89,186.44,186.41,5.3605]
[1755338347864,2.89,186.48,186.37,3.1]
[1755338348063,4.15364738,186.47,186.37,3.1]
[1755338348368,2.89,186.45,186.37,3.1]
[1755338348570,2.89,186.43,186.34,4.55460747]
[1755338348770,2.89,186.43,186.34,7.65460747]
[1755338349069,2.89,186.43,186.35,3.1]
[1755338350168,2.89,186.43,186.37,5.3617]
[1755338350372,2.89,186.43,186.35,3.1]
[1755338351371,2.89,186.43,186.33,3.1]
[1755338351966,5.3606,186.42,186.33,3.1]
[1755338352170,2.89,186.41,186.33,3.1]
[1755338352669,2.89,186.4,186.37,3.1]
[1755338352874,2.89,186.39,186.27,0.93378949]
[1755338353061,2.89,186.39,186.19,3.1]
[1755338353062,4.14348891,186.38,186.19,3.1]
[1755338353268,2.89,186.36,186.21,3.1]
[1755338353767,2.89,186.34,186.23,3.1]
[1755338353965,2.89,186.34,186.18,7.65460747]
[1755338354161,2.89,186.32,186.19,3.1]
[1755338354763,4.1359739,186.31,186.19,3.1]
[1755338354965,2.89,186.3,186.19,3.1]
[1755338355160,2.89,186.37,186.19,3.1]
[1755338355368,2.89,186.35,186.24,8.4656]
[1755338355565,2.89,186.33,186.24,8.4656]
[1755338355767,2.89,186.35,186.28,8.4643]
[1755338355977,2.89,186.35,186.28,3.1]
[1755338356473,2.89,186.35,186.2,7.84563475]
[1755338356474,4.12647595,186.34,186.21,3.1]
[1755338356674,2.89,186.33,186.21,3.1]
[1755338356871,2.89,186.33,186.27,3.1]
[1755338357072,5.29751038,186.39,186.27,3.1]
[1755338357073,2.89,186.38,186.27,3.1]
[1755338357373,2.89,186.38,186.31,5.3637]
[1755338357773,2.89,186.38,186.3,3.1]
[1755338357970,2.89,186.38,186.33,5.363]
[1755338358170,2.89,186.37,186.33,8.463]
[1755338358374,2.89,186.44,186.29,3.1]
[1755338358575,2.89,186.44,186.33,2.95]
[1755338359076,2.89,186.44,186.35,8.3122]
[1755338359283,2.89,186.44,186.32,2.95]
[1755338359572,3.05,186.42,186.32,2.95]
[1755338359772,3.05,186.4,186.27,2.95]
[1755338360271,3.05,186.4,186.29,5.3642]
[1755338360472,3.05,186.4,186.3,2.95]
[1755338360877,3.05,186.38,186.17,2.95]
[1755338361078,3.05,186.36,186.18,2.95]
[1755338361270,3.05,186.36,186.24,5.3654]
[1755338361472,4.11663236,186.35,186.23,2.95]
[1755338361677,3.05,186.34,186.23,2.95]
[1755338362470,3.05,186.34,186.24,5.3656]
[1755338362776,3.05,186.34,186.25,2.95]
[1755338363777,3.05,186.34,186.25,8.3153]
[1755338363975,3.05,186.34,186.25,2.95]
[1755338364378,3.05,186.34,186.25,8.3153]
[1755338364576,4.35402284,186.41,186.25,2.95]
[1755338364774,3.05,186.39,186.25,2.95]
[1755338364972,3.05,186.37,186.28,2.95]
[1755338365173,4.11272554,186.38,186.28,2.95]